fUST/lending_fUST_20251109
["ID","MTS","AMOUNT","RATE_DAILY","PERIOD"]
[393469423,1762697433353,-151.0,0.00024908,2]
[393469424,1762697433363,-212.337303,0.00024908,2]
[393469425,1762697433373,-500.0,0.00024908,2]
[393469426,1762697433382,-151.0,0.00024908,2]
[393469427,1762697433392,-500.0,0.00024908,2]
[393469428,1762697433402,-500.0,0.00024908,2]
[393469429,1762697433411,-151.91970819,0.00024908,2]
[393469430,1762697433421,-500.0,0.00024908,2]
[393469431,1762697433431,-11102.05,0.00024908,2]
[393469432,1762697433443,-151.0,0.00024908,7]
[393469433,1762697433455,-246.628009,0.00024908,7]
[393469434,1762697433468,-894.577969,0.00024908,7]
[393469435,1762697433482,-894.577969,0.00024908,7]
[393469436,1762697433495,-894.577969,0.00024908,7]
[393469437,1762697433507,-894.577969,0.00024908,7]
[393469438,1762697433518,-894.577969,0.00024908,7]
[393469439,1762697433529,-894.577969,0.00024908,7]
[393469440,1762697433541,-894.577969,0.00024908,7]
[393469441,1762697433553,-894.577965,0.00024908,7]
[393469442,1762697433565,-274.958846,0.00024908,7]
[393469443,1762697433577,-274.958846,0.00024908,7]
[393469444,1762697433589,-151.865898,0.00024909,7]
[393469445,1762697433601,-163.100671,0.00024909,7]
[393469446,1762697433613,-151.0,0.00024909,7]
[393469447,1762697433626,-156.462676,0.00024909,7]
[393469448,1762697433637,-151.0,0.00024909,7]
[393469449,1762697433649,-151.0,0.00024909,2]
[393469450,1762697433660,-151.0,0.00024909,2]
[393469451,1762697433674,-11102.05,0.00024909,2]
[393469452,1762697433687,-151.0,0.00024956,2]
[393469453,1762697433699,-151.0,0.00024956,2]
[393469454,1762697433711,-589.43987549,0.00024957,2]
[393469455,1762697433724,-500.0,0.00024962,2]
[393469456,1762697433736,-500.0,0.00024963,2]
[393469457,1762697433747,-500.0,0.00024963,2]
[393469458,1762697433760,-500.0,0.00024963,2]
[393469459,1762697433771,-500.0,0.00024963,2]
[393469460,1762697433782,-500.0,0.00024964,2]
[393469461,1762697433793,-500.0,0.00024964,2]
[393469462,1762697433805,-193.337563,0.00024965,7]
[393469463,1762697433816,-151.0,0.00024965,7]
[393469464,1762697433827,-200.0,0.00024966,7]
[393469465,1762697433838,-200.0,0.00024966,7]
[393469466,1762697433850,-200.0,0.00024966,7]
[393469467,1762697433862,-200.0,0.00024966,7]
[393469468,1762697433872,-200.0,0.00024966,7]
[393469469,1762697433883,-11102.05,0.00024971,2]
[393469470,1762697433892,-11102.05,0.00024972,2]
[393469471,1762697433904,-497.67103427,0.00024973,2]
[393469472,1762697433916,-436.91889846,0.00024973,2]
[393469473,1762697433927,-500.0,0.00024973,2]
[393469474,1762697433938,-500.0,0.00024973,2]
[393469475,1762697433950,-501.34337219,0.00024973,2]
[393469476,1762697433961,-850.6,0.0002498,3]
[393469477,1762697433972,-1509.40503142,0.0002499,2]
[393469478,1762697433984,-33872.1229659,0.0002499,2]
[393469479,1762697433997,-151.0,0.00025,2]
[393469480,1762697434011,-151.45345064,0.00025,2]
[393469481,1762697434023,-151.54740467,0.00025,2]
[393469482,1762697434034,-500.0,0.00025,2]
[393469483,1762697434047,-151.65747437,0.00025,2]
[393469484,1762697434059,-151.50518501,0.00025,2]
[393469485,1762697434070,-152.24937403,0.00025,2]
[393469486,1762697434084,-151.0,0.00025,2]
[393469487,1762697434096,-151.0,0.00025,2]
[393469488,1762697434107,-152.45805832,0.00025,2]
[393469489,1762697434118,-152.44990915,0.00025,2]
[393469490,1762697434128,-500.0,0.00025017,2]
[393469491,1762697434138,-500.0,0.00025018,2]
[393469492,1762697434148,-500.0,0.00025018,2]
[393469493,1762697434159,-500.0,0.00025018,2]
[393469494,1762697434170,-159.25107369,0.00025018,2]
[393469495,1762697434182,-500.0,0.00025054,2]
[393469496,1762697434194,-151.0,0.00025055,2]
[393469497,1762697434207,-547.0,0.00025055,2]
[393469498,1762697434219,-151.0,0.00025055,2]
[393469499,1762697434232,-151.0,0.00025055,2]
[393469500,1762697434243,-351.33993748,0.00025071,2]
[393469501,1762697434253,-500.0,0.00025072,2]
[393469502,1762697434264,-500.0,0.00025072,2]
[393469503,1762697434275,-221.71594749,0.00025072,2]
[393469504,1762697434286,-589.43987549,0.00025106,2]
[393469505,1762697434297,-198.9359506,0.0002511,2]
[393469506,1762697434310,-151.0,0.0002511,2]
[393469507,1762697434321,-198.0,0.0002511,2]
[393469508,1762697434331,-479.6577638,0.00025127,2]
[393469509,1762697434342,-500.0,0.00025127,2]
[393469510,1762697434352,-295.03993149,0.00025164,2]
[393469511,1762697434363,-500.0,0.00025182,2]
[393469512,1762697434373,-500.0,0.00025182,2]
[393469513,1762697434383,-924.57012674,0.00025207,2]
[393469514,1762697434394,-160.0,0.00025216,2]
[393469515,1762697434405,-500.0,0.00025237,2]
[393469516,1762697434416,-589.43987549,0.00025255,2]
[393469517,1762697434426,-500.0,0.00025292,2]
[393469518,1762697434436,-500.0,0.00025346,2]
[393469519,1762697434448,-11102.05,0.00025376,2]
[393469520,1762697434459,-342.0,0.00025378,2]
[393469521,1762697434470,-500.0,0.00025401,2]
[393469522,1762697434482,-589.43987549,0.00025404,2]
[393469523,1762697434493,-11102.05,0.00025411,2]
[393469524,1762697434504,-33872.1229659,0.00025411,2]
[393469525,1762697434514,-564.55168263,0.00025415,2]
[393469526,1762697434526,-1000.0,0.00025421,2]
[393469527,1762697434537,-1000.0,0.00025421,2]
[393469528,1762697434547,-500.0,0.00025421,2]
[393469529,1762697434559,-1000.0,0.00025421,2]
[393469530,1762697434570,-209.59424987,0.00025421,2]
[393469531,1762697434581,-376.78209615,0.00025421,2]
[393469532,1762697434592,-11102.05,0.00025421,2]
[393469533,1762697434603,-11102.05,0.0002543,2]
[393469534,1762697434614,-500.0,0.00025456,2]
[393469535,1762697434627,-500.0,0.00025456,2]
[393469536,1762697434637,-503.687773,0.00025473,2]
[393469537,1762697434648,-33872.1229659,0.00025491,2]
[393469538,1762697434659,-7580.84583467,0.00025501,2]
[393469539,1762697434675,-1804.66514999,0.00025501,2]
[393469540,1762697434688,-1716.53901534,0.00025501,2]
[393469541,1762697434698,-11102.05,0.00025501,2]
[393469542,1762697434709,-14515.41098466,0.00025502,2]
[393469550,1762697438242,-500.0,0.00024898,2]
[393469551,1762697438253,-17.42876019,0.00024898,2]
[393469552,1762697438266,-482.57123981,0.00024898,2]
[393469553,1762697438277,-27.12995433,0.00024898,2]
[393469554,1762697438392,-472.87004567,0.00024898,2]
[393469555,1762697438402,-500.0,0.00024898,2]
[393469556,1762697438412,-500.0,0.00024898,2]
[393469557,1762697438422,-500.0,0.00024898,2]
[393469558,1762697438432,-500.0,0.00024898,2]
[393469559,1762697438442,-500.0,0.00024898,2]
[393469560,1762697438452,-500.0,0.00024898,2]
[393469561,1762697438462,-500.0,0.00024898,2]
[393469562,1762697438472,-500.0,0.00024898,2]
[393469563,1762697438484,-500.0,0.00024898,2]
[393469564,1762697438494,-500.0,0.00024898,2]
[393469565,1762697438504,-575.55942206,0.00024898,2]
[393469566,1762697438515,-500.0,0.00024898,2]
[393469567,1762697438525,-500.0,0.00024898,2]
[393469568,1762697438535,-500.0,0.00024898,2]
[393469569,1762697438545,-500.0,0.00024898,2]
[393469570,1762697438555,-9.96301343,0.00024898,2]
[393469571,1762697438567,-490.03698657,0.00024898,2]
[393469572,1762697438576,-500.0,0.00024898,2]
[393469573,1762697438586,-500.0,0.00024898,2]
[393469574,1762697438596,-438.06624131,0.00024898,2]
[393469575,1762697438606,-500.0,0.00024898,2]
[393469576,1762697438616,-500.0,0.00024898,2]
[393469577,1762697438626,-500.0,0.00024898,2]
[393469578,1762697438636,-261.50093821,0.00024898,2]
[393469579,1762697438646,-500.0,0.00024898,2]
[393469580,1762697438657,-500.0,0.00024898,2]
[393469581,1762697438672,-500.0,0.00024898,2]
[393469582,1762697438682,-521.84985516,0.00024898,2]
[393469583,1762697438692,-500.0,0.00024898,2]
[393469584,1762697438701,-500.0,0.00024898,2]
[393469585,1762697438711,-500.0,0.00024898,2]
[393469586,1762697438721,-500.0,0.00024898,2]
[393469587,1762697438735,-500.0,0.00024898,2]
[393469588,1762697438745,-500.0,0.00024898,2]
[393469589,1762697438756,-500.0,0.00024898,2]
[393469590,1762697438766,-500.0,0.00024898,2]
[393469591,1762697438776,-500.0,0.00024898,2]
[393469592,1762697438786,-434.91834005,0.00024898,2]
[393469609,1762697440385,-65.08165995,0.00024898,2]
[393469610,1762697440395,-500.0,0.00024898,2]
[393469611,1762697440405,-325.72157472,0.00024898,2]
[393469636,1762697443562,-174.27842528,0.00024898,2]
[393469637,1762697443572,-500.0,0.00024898,2]
[393469638,1762697443582,-500.0,0.00024898,2]
[393469639,1762697443592,-388.20553685,0.00024898,2]
[393469641,1762697443601,-500.0,0.00024898,2]
[393469642,1762697443611,-500.0,0.00024898,2]
[393469643,1762697443620,-500.0,0.00024898,2]
[393469644,1762697443629,-264.79815394,0.00024898,2]
[393469645,1762697443639,-500.0,0.00024898,2]
[393469646,1762697443648,-500.0,0.00024898,2]
[393469647,1762697443658,-500.0,0.00024898,2]
[393469648,1762697443667,-500.0,0.00024898,2]
[393469649,1762697443676,-500.0,0.00024898,2]
[393469650,1762697443686,-500.0,0.00024898,2]
[393469651,1762697443695,-500.0,0.00024898,2]
[393469652,1762697443705,-500.0,0.00024898,2]
[393469653,1762697443715,-500.0,0.00024898,2]
[393469654,1762697443725,-500.0,0.00024898,2]
[393469655,1762697443736,-500.0,0.00024898,2]
[393469656,1762697443745,-500.0,0.00024898,2]
[393469657,1762697443755,-500.0,0.00024898,2]
[393469658,1762697443764,-274.958846,0.00024899,7]
[393469659,1762697443774,-274.958846,0.00024899,7]
[393469660,1762697443783,-259.58,0.000249,2]
[393469661,1762697443792,-274.958846,0.000249,7]
[393469662,1762697443800,-259.58,0.000249,2]
[393469663,1762697443810,-259.58,0.000249,2]
[393469664,1762697443819,-259.58,0.000249,2]
[393469665,1762697443829,-259.58,0.000249,2]
[393469666,1762697443838,-259.58,0.000249,2]
[393469667,1762697443847,-259.58,0.000249,2]
[393469668,1762697443856,-259.58,0.000249,2]
[393469669,1762697443866,-259.58,0.000249,2]
[393469670,1762697443876,-274.958846,0.000249,7]
[393469671,1762697443886,-259.58,0.000249,2]
[393469672,1762697443896,-259.58,0.000249,2]
[393469673,1762697443906,-259.58,0.000249,2]
[393469674,1762697443915,-259.58,0.000249,2]
[393469675,1762697443924,-259.58,0.000249,2]
[393469676,1762697443933,-103.55958216,0.000249,2]
[393469689,1762697446779,-156.02041784,0.000249,2]
[393469690,1762697446788,-259.58,0.000249,2]
[393469691,1762697446797,-259.58,0.000249,2]
[393469692,1762697446807,-274.958846,0.000249,7]
[393469693,1762697446817,-259.58,0.000249,2]
[393469694,1762697446826,-259.58,0.000249,2]
[393469695,1762697446835,-259.58,0.000249,2]
[393469696,1762697446845,-259.58,0.000249,2]
[393469697,1762697446855,-259.58,0.000249,2]
[393469698,1762697446869,-274.958846,0.00024907,7]
[393469699,1762697446878,-274.958846,0.00024907,7]
[393469700,1762697446888,-274.958846,0.00024907,7]
[393469701,1762697446897,-274.958846,0.00024908,7]
[393469702,1762697446907,-274.958846,0.00024908,7]
[393469703,1762697446916,-82.68417911,0.00024908,7]
[393469711,1762698012192,8877.15,0.00037052,60]
[393469712,1762698012453,8877.15,0.00037052,60]
[393469713,1762698012676,4770.97637972,0.00037052,60]
[393469715,1762698212949,7088.55,0.0003287,120]
[393469726,1762698556235,-6511.27990441,0.00018,2]
[393469727,1762698556255,-450.0026893,0.000202,2]
[393469728,1762698556276,-300.0,0.00023641,2]
[393469729,1762698556296,-1195.0,0.00023642,2]
[393469730,1762698556316,-924.93988085,0.00023642,2]
[393469731,1762698556336,-1200.0,0.00023654,2]
[393469732,1762698556357,-206.07181492,0.00023655,2]
[393469733,1762698556377,-370.92926685,0.00023655,2]
[393469734,1762698556400,-659.42980774,0.00023655,2]
[393469735,1762698556420,-454.58188778,0.00023655,2]
[393469736,1762698556439,-366.47786477,0.00023655,2]
[393469737,1762698556462,-235.95058948,0.00023655,2]
[393469738,1762698556483,-424.71106106,0.00023655,2]
[393469739,1762698556503,-1000.0,0.00024,3]
[393469740,1762698556526,-5048.55633725,0.00024,60]
[393469741,1762698556546,-797.82,0.00024132,10]
[393469742,1762698556568,-856.51,0.00024132,10]
[393469743,1762698556590,-88614.53741927,0.00024142,2]
[393469746,1762698572608,266.104887,0.00013699,2]
[393469808,1762698632523,-211.47665925,0.00019058,2]
[393469809,1762698632532,-243.56065387,0.00020187,2]
[393469810,1762698632544,-22.54423313,0.00020187,2]
[393469811,1762698632555,-755.04188633,0.00023655,2]
[393469812,1762698632566,-211.47665925,0.00023847,2]
[393469813,1762698632577,-300.0,0.00024141,2]
[393469814,1762698632587,-2.97722129,0.00024142,2]
[393469855,1762698638588,-426.6195808,0.00019058,2]
[393469857,1762698638601,-90.56374922,0.00021453,2]
[393469900,1762698640618,-336.05583158,0.00021453,2]
[393469902,1762698640627,-231.3603633,0.00023847,2]
[393469904,1762698640639,-195.2592175,0.00023847,2]
[393469905,1762698640649,-226.95538206,0.00023901,4]
[393469906,1762698640672,-596.3147206,0.00023901,4]
[393469907,1762698640684,-2395.35330605,0.00023901,4]
[393469948,1762698647039,-263.66330695,0.00019058,2]
[393469949,1762698647049,-533.35678527,0.00021238,4]
[393469950,1762698647061,-1408.78188268,0.00021238,4]
[393469951,1762698647071,-1490.4843981,0.00023805,2]
[393469952,1762698647080,-263.66330695,0.00023844,2]
[393469953,1762698647090,-935.24890056,0.00023901,4]
[393469954,1762698647100,-13736.55121452,0.00024142,2]
[393469955,1762698660280,1042.76377146,0.00019616,4]
[393469957,1762698682571,1383.45262846,0.00019616,4]
[393469959,1762698912757,150.0,0.00032876,120]
[393469960,1762699059770,150.0,0.00019616,4]
[393469965,1762699308981,-478768.16786525,0.00037078,20]
[393469966,1762699309032,-1783.121005,0.00037078,35]
[393469967,1762699309084,-1749.30984887,0.00037078,30]
[393469968,1762699309136,-10218.5,0.00037078,30]
[393469969,1762699309184,-164.0,0.00037078,30]
[393469970,1762699309233,-19999.999999,0.00037078,120]
[393469971,1762699309293,-7938.6,0.00037078,60]
[393469972,1762699309340,-7938.6,0.00037078,60]
[393469973,1762699309388,-7938.6,0.00037078,60]
[393469974,1762699309435,-7938.6,0.00037078,60]
[393469975,1762699309484,-7938.6,0.00037078,60]
[393469976,1762699309535,-7938.6,0.00037078,60]
[393469977,1762699309583,-7938.6,0.00037078,60]
[393469978,1762699309629,-7938.6,0.00037078,60]
[393469979,1762699309674,-7938.6,0.00037078,60]
[393469980,1762699309723,-7938.6,0.00037078,60]
[393469981,1762699309772,-7938.6,0.00037078,60]
[393469982,1762699309823,-7938.6,0.00037078,60]
[393469983,1762699309875,-7938.6,0.00037078,60]
[393469984,1762699309930,-7938.6,0.00037078,60]
[393469985,1762699309984,-7938.6,0.00037078,60]
[393469986,1762699310036,-7938.6,0.00037078,120]
[393469987,1762699310087,-7938.6,0.00037078,120]
[393469988,1762699310136,-7938.6,0.00037078,120]
[393469989,1762699310186,-7938.6,0.00037078,120]
[393469990,1762699310239,-7938.6,0.00037078,120]
[393469991,1762699310291,-7938.6,0.00037078,120]
[393469992,1762699310343,-7938.6,0.00037078,120]
[393469993,1762699310393,-7938.6,0.00037078,120]
[393469994,1762699310442,-7938.67312028,0.00037078,120]
[393469995,1762699310489,-500.0,0.00037078,21]
[393469996,1762699310536,-500.0,0.00037078,21]
[393469997,1762699310582,-500.0,0.00037078,21]
[393469998,1762699310632,-178.1376492,0.00037078,21]
[393470000,1762699440055,608.48514696,0.00037078,20]
[393470001,1762699460062,500.0,0.00037078,21]
[393470002,1762699460307,500.0,0.00037078,21]
[393470003,1762699460546,500.0,0.00037078,21]
[393470004,1762699460803,500.0,0.00037078,21]
[393470005,1762699461044,500.0,0.00037078,21]
[393470006,1762699506703,414.0,0.00037082,120]
[393470007,1762699507003,250.0,0.00037082,120]
[393470008,1762699507121,151.0,0.00037082,120]
[393470009,1762699507184,2000.0,0.00037082,120]
[393470010,1762699507706,250.0,0.00037082,120]
[393470011,1762699507838,2000.0,0.00037082,120]
[393470013,1762699507951,429.318,0.00037082,120]
[393470014,1762699508329,250.0,0.00037082,120]
[393470015,1762699508390,151.0,0.00037082,120]
[393470016,1762699508504,2000.0,0.00037082,120]
[393470017,1762699508834,445.202766,0.00037082,120]
[393470018,1762699509101,250.0,0.00037082,120]
[393470019,1762699509167,2000.0,0.00037082,120]
[393470020,1762699509505,445.202766,0.00037082,120]
[393470021,1762699509562,151.0,0.00037082,120]
[393470022,1762699509914,250.0,0.00037082,120]
[393470023,1762699510130,151.0,0.00037082,120]
[393470024,1762699510192,151.0,0.00037082,120]
[393470025,1762699510263,2000.0,0.00037082,120]
[393470026,1762699510577,308.65861218,0.00037082,120]
[393470027,1762699510698,250.0,0.00037082,120]
[393470028,1762699510760,284.8359338,0.00037082,120]
[393470029,1762699510913,151.0,0.00037082,120]
[393470030,1762699510974,151.0,0.00037082,120]
[393470031,1762699511029,151.0,0.00037082,120]
[393470032,1762699511088,2000.0,0.00037082,120]
[393470033,1762699511443,156.587,0.00037082,120]
[393470034,1762699511500,151.0,0.00037082,120]
[393470035,1762699511557,151.0,0.00037082,120]
[393470036,1762699511612,2000.0,0.00037082,120]
[393470037,1762699512086,156.587,0.00037082,120]
[393470038,1762699512173,151.0,0.00037082,120]
[393470039,1762699513051,151.0,0.00037082,120]
[393470040,1762699513193,1888.0,0.00037082,60]
[393470043,1762699513816,1888.0,0.00037082,60]
[393470044,1762699514066,250.0,0.00037082,120]
[393470045,1762699514169,500.0,0.00037082,60]
[393470046,1762699514405,530.44669048,0.00037082,60]
[393470048,1762699514818,250.0,0.00037082,120]
[393470049,1762699514892,151.0,0.00037082,120]
[393470050,1762699515450,151.0,0.00037082,120]
[393470051,1762699515570,250.0,0.00037082,120]
[393470052,1762699516058,151.0,0.00037082,120]
[393470053,1762699516310,250.0,0.00037082,120]
[393470054,1762699520575,151.0,0.00037082,120]
[393470055,1762699521240,156.587,0.00037082,120]
[393470056,1762699521386,151.0,0.00037082,120]
[393470057,1762699522154,156.587,0.00037082,120]
[393470058,1762699522498,156.587,0.00037082,120]
[393470059,1762699522840,156.587,0.00037082,120]
[393470060,1762699525561,312.92147912,0.00037082,60]
[393470061,1762699529229,169.10514771,0.00037082,60]
[393470062,1762699546328,500.0,0.00037082,60]
[393470063,1762699546548,500.0,0.00037082,60]
[393470064,1762699546941,596.03504086,0.00037082,60]
[393470065,1762699550141,500.0,0.00037082,60]
[393470066,1762699550414,500.0,0.00037082,60]
[393470067,1762699550655,500.0,0.00037082,60]
[393470068,1762699550908,647.62768015,0.00037082,60]
[393470069,1762699561982,500.0,0.00037082,60]
[393470070,1762699562215,500.0,0.00037082,60]
[393470071,1762699562520,500.0,0.00037082,60]
[393470072,1762699564521,500.0,0.00037082,60]
[393470073,1762699564757,500.0,0.00037082,60]
[393470074,1762699565025,528.54216605,0.00037082,60]
[393470075,1762699566454,514.51384164,0.00037082,60]
[393470076,1762699566519,604.5899297,0.00037082,60]
[393470077,1762699568632,500.0,0.00037082,60]
[393470078,1762699568879,500.0,0.00037082,60]
[393470079,1762699569125,500.0,0.00037082,60]
[393470080,1762699569361,500.0,0.00037082,60]
[393470081,1762699569596,500.0,0.00037082,60]
[393470082,1762699569776,500.0,0.00037082,60]
[393470083,1762699570017,157.99697011,0.00037082,60]
[393470084,1762699573026,500.0,0.00037082,60]
[393470085,1762699573274,500.0,0.00037082,60]
[393470086,1762699573507,500.0,0.00037082,60]
[393470087,1762699573794,528.31454123,0.00037082,60]
[393470088,1762699574667,500.0,0.00037082,60]
[393470089,1762699574915,500.0,0.00037082,60]
[393470090,1762699575150,500.0,0.00037082,60]
[393470091,1762699575380,500.0,0.00037082,60]
[393470092,1762699575639,584.79039104,0.00037082,60]
[393470093,1762699577530,500.0,0.00037082,60]
[393470094,1762699577768,500.0,0.00037082,60]
[393470095,1762699578010,500.0,0.00037082,60]
[393470096,1762699578249,276.42785642,0.00037082,60]
[393470097,1762699580102,500.0,0.00037082,60]
[393470098,1762699580347,500.0,0.00037082,60]
[393470099,1762699580583,500.0,0.00037082,60]
[393470100,1762699580871,634.10425326,0.00037082,60]
[393470101,1762699582818,500.0,0.00037082,60]
[393470102,1762699583085,528.77671222,0.00037082,60]
[393470103,1762699588411,500.0,0.00037082,60]
[393470104,1762699588659,500.0,0.00037082,60]
[393470105,1762699588730,500.0,0.00037082,60]
[393470106,1762699588886,557.32866786,0.00037082,60]
[393470107,1762699589007,500.0,0.00037082,60]
[393470108,1762699589612,500.0,0.00037082,60]
[393470109,1762699589856,500.0,0.00037082,60]
[393470110,1762699590134,623.96137288,0.00037082,60]
[393470111,1762699591508,500.0,0.00037082,60]
[393470112,1762699591778,532.86200813,0.00037082,60]
[393470113,1762699596567,500.0,0.00037082,60]
[393470114,1762699596802,500.0,0.00037082,60]
[393470115,1762699597340,626.29382856,0.00037082,60]
[393470116,1762699597537,500.0,0.00037082,60]
[393470117,1762699597727,500.0,0.00037082,60]
[393470118,1762699597906,385.05843866,0.00037082,60]
[393470119,1762699599739,500.0,0.00037082,60]
[393470120,1762699600004,500.0,0.00037082,60]
[393470121,1762699600242,500.0,0.00037082,60]
[393470122,1762699600467,500.0,0.00037082,60]
[393470123,1762699600699,239.23,0.00037082,60]
[393470124,1762699601162,500.0,0.00037082,60]
[393470125,1762699601394,500.0,0.00037082,60]
[393470126,1762699601629,540.01073638,0.00037082,60]
[393470127,1762699603395,500.0,0.00037082,60]
[393470128,1762699603630,403.90175146,0.00037082,60]
[393470129,1762699605440,500.0,0.00037082,60]
[393470130,1762699605688,500.0,0.00037082,60]
[393470131,1762699605932,535.2956739,0.00037082,60]
[393470132,1762699606459,500.0,0.00037082,60]
[393470133,1762699606687,500.0,0.00037082,60]
[393470134,1762699606960,500.0,0.00037082,60]
[393470135,1762699607192,500.0,0.00037082,60]
[393470136,1762699607428,500.0,0.00037082,60]
[393470137,1762699607659,500.0,0.00037082,60]
[393470138,1762699607897,500.0,0.00037082,60]
[393470139,1762699607961,500.0,0.00037082,60]
[393470140,1762699608069,500.0,0.00037082,60]
[393470141,1762699608152,500.0,0.00037082,60]
[393470142,1762699608301,500.0,0.00037082,60]
[393470143,1762699608383,500.0,0.00037082,60]
[393470144,1762699608536,357.43378992,0.00037082,60]
[393470145,1762699608613,500.0,0.00037082,60]
[393470146,1762699608888,500.0,0.00037082,60]
[393470147,1762699608977,500.0,0.00037082,60]
[393470148,1762699609136,500.0,0.00037082,60]
[393470149,1762699609221,500.0,0.00037082,60]
[393470150,1762699609355,595.91599425,0.00037082,60]
[393470151,1762699609440,500.0,0.00037082,60]
[393470152,1762699609872,500.0,0.00037082,60]
[393470153,1762699610002,500.0,0.00037082,60]
[393470154,1762699610107,500.0,0.00037082,60]
[393470155,1762699610232,500.0,0.00037082,60]
[393470156,1762699610329,500.0,0.00037082,60]
[393470157,1762699610489,500.0,0.00037082,60]
[393470158,1762699610557,500.0,0.00037082,60]
[393470159,1762699610716,500.0,0.00037082,60]
[393470160,1762699610796,500.0,0.00037082,60]
[393470161,1762699610939,500.0,0.00037082,60]
[393470162,1762699611047,500.0,0.00037082,60]
[393470163,1762699611162,219.18026752,0.00037082,60]
[393470164,1762699611288,500.0,0.00037082,60]
[393470165,1762699611525,500.0,0.00037082,60]
[393470166,1762699611743,500.0,0.00037082,60]
[393470167,1762699611798,500.0,0.00037082,60]
[393470168,1762699611999,500.0,0.00037082,60]
[393470169,1762699612053,500.0,0.00037082,60]
[393470170,1762699612236,500.0,0.00037082,60]
[393470171,1762699612388,500.0,0.00037082,60]
[393470172,1762699612469,500.0,0.00037082,60]
[393470173,1762699612528,500.0,0.00037082,60]
[393470174,1762699612701,500.0,0.00037082,60]
[393470175,1762699612759,182.7679131,0.00037082,60]
[393470176,1762699612887,500.0,0.00037082,60]
[393470177,1762699612942,500.0,0.00037082,60]
[393470178,1762699613129,500.0,0.00037082,60]
[393470179,1762699613185,257.0937629,0.00037082,60]
[393470180,1762699613381,525.76,0.00037082,60]
[393470181,1762699615560,500.0,0.00037082,60]
[393470182,1762699615821,500.0,0.00037082,60]
[393470183,1762699616070,500.0,0.00037082,60]
[393470184,1762699616301,500.0,0.00037082,60]
[393470185,1762699619769,500.0,0.00037082,60]
[393470186,1762699620174,500.0,0.00037082,60]
[393470187,1762699620438,500.0,0.00037082,60]
[393470188,1762699620687,493.95601239,0.00037082,60]
[393470189,1762699626061,500.0,0.00037082,60]
[393470190,1762699626297,500.0,0.00037082,60]
[393470191,1762699626598,617.53183388,0.00037082,60]
[393470192,1762699627262,500.0,0.00037082,60]
[393470193,1762699627481,500.0,0.00037082,60]
[393470194,1762699627712,500.0,0.00037082,60]
[393470195,1762699627951,500.0,0.00037082,60]
[393470196,1762699628193,307.05711792,0.00037082,60]
[393470197,1762699629080,500.0,0.00037082,60]
[393470198,1762699629320,500.0,0.00037082,60]
[393470199,1762699629582,500.0,0.00037082,60]